lending/lending_fUSD_20251015
["ID","MTS","AMOUNT","RATE_DAILY","PERIOD"]
[391341836,1760549441830,-1667.0,0.00017217,2]
[391341837,1760549441839,-500.0,0.00017217,2]
[391341838,1760549441850,-1483.0,0.00017217,2]
[391341839,1760549441860,-470.0,0.0001726,30]
[391341840,1760549441870,-458.0,0.00017272,2]
[391341841,1760549441880,-1667.0,0.00017272,2]
[391341842,1760549441889,-500.0,0.00017272,2]
[391341843,1760549441899,-1483.0,0.00017272,2]
[391341844,1760549441908,-166.66,0.00017276,2]
[391341845,1760549441918,-1984.61727957,0.000173,2]
[391341846,1760549441927,-470.0,0.00017315,30]
[391341847,1760549441937,-458.0,0.00017327,2]
[391341848,1760549441947,-1667.0,0.00017327,2]
[391341849,1760549441958,-500.0,0.00017327,2]
[391341850,1760549441967,-1483.0,0.00017327,2]
[391341851,1760549441976,-31305.98039022,0.00017359,2]
[391341852,1760549441989,-470.0,0.0001737,30]
[391341853,1760549441999,-413.53,0.00017372,2]
[391341854,1760549442008,-546.55,0.00017372,2]
[391341855,1760549442017,-1093.1,0.00017372,2]
[391341856,1760549442431,-458.0,0.00017382,2]
[391341857,1760549442451,-1667.0,0.00017382,2]
[391341858,1760549442461,-500.0,0.00017382,2]
[391341859,1760549442472,-1483.0,0.00017382,2]
[391341860,1760549442481,-5035.36108513,0.00017409,2]
[391341861,1760549442496,-470.0,0.00017424,30]
[391341862,1760549442507,-458.0,0.00017436,2]
[391341863,1760549442516,-1667.0,0.00017436,2]
[391341864,1760549442526,-500.0,0.00017436,2]
[391341865,1760549442536,-1483.0,0.00017436,2]
[391341866,1760549442546,-500.0,0.00017438,2]
[391341867,1760549442555,-4903.97407632,0.00017451,2]
[391341868,1760549442564,-470.0,0.00017479,30]
[391341869,1760549442575,-458.0,0.00017491,2]
[391341870,1760549442585,-1667.0,0.00017491,2]
[391341871,1760549442595,-500.0,0.00017491,2]
[391341872,1760549442604,-1483.0,0.00017491,2]
[391341873,1760549442614,-161.7355971,0.00017496,2]
[391341874,1760549442623,-470.0,0.00017534,30]
[391341875,1760549442633,-701.23374218,0.00017534,2]
[391341876,1760549442642,-458.0,0.00017546,2]
[391341877,1760549442652,-1667.0,0.00017546,2]
[391341878,1760549442660,-500.0,0.00017546,2]
[391341879,1760549442671,-1483.0,0.00017546,2]
[391341880,1760549442680,-470.0,0.00017589,30]
[391341881,1760549442689,-458.0,0.00017601,2]
[391341882,1760549442698,-1667.0,0.00017601,2]
[391341883,1760549442707,-500.0,0.00017601,2]
[391341884,1760549442718,-1483.0,0.00017601,2]
[391341885,1760549442727,-5035.36108513,0.00017605,2]
[391341886,1760549442738,-4050.4157,0.00017612,2]
[391341887,1760549442747,-3886.6037,0.00017612,2]
[391341888,1760549442756,-736.0,0.00017639,2]
[391341889,1760549442766,-470.0,0.00017643,30]
[391341890,1760549442775,-458.0,0.00017656,2]
[391341891,1760549442785,-1667.0,0.00017656,2]
[391341892,1760549442795,-500.0,0.00017656,2]
[391341893,1760549442805,-1483.0,0.00017656,2]
[391341894,1760549442814,-321.83294016,0.00017698,30]
[391341895,1760549442824,-458.0,0.0001771,2]
[391341897,1760549442834,-1667.0,0.0001771,2]
[391341899,1760549442844,-500.0,0.0001771,2]
[391341901,1760549442854,-1483.0,0.0001771,2]
[391341903,1760549442864,-500.0,0.00017712,2]
[391341905,1760549442873,-2000.0,0.00017744,2]
[391341907,1760549442883,-2000.0,0.00017744,2]
[391341909,1760549442893,-4903.97407632,0.00017764,2]
[391341911,1760549442903,-458.0,0.00017765,2]
[391341913,1760549442912,-1667.0,0.00017765,2]
[391341915,1760549442923,-500.0,0.00017765,2]
[391341916,1760549442932,-1483.0,0.00017765,2]
[391341917,1760549442942,-5035.36108513,0.00017801,2]
[391341918,1760549442952,-551.98177729,0.00017808,2]
[391341919,1760549442961,-458.0,0.0001782,2]
[391341920,1760549442970,-1667.0,0.0001782,2]
[391341921,1760549442980,-500.0,0.0001782,2]
[391341922,1760549442993,-1483.0,0.0001782,2]
[391341923,1760549443003,-166.66,0.00017828,2]
[391341924,1760549443013,-458.0,0.00017875,2]
[391341925,1760549443023,-1667.0,0.00017875,2]
[391341927,1760549443033,-500.0,0.00017875,2]
[391341929,1760549443043,-1483.0,0.00017875,2]
[391341931,1760549443052,-214.4,0.000179,2]
[391341933,1760549443062,-458.0,0.00017929,2]
[391341935,1760549443072,-1667.0,0.00017929,2]
[391341937,1760549443082,-500.0,0.00017929,2]
[391341939,1760549443091,-1483.0,0.00017929,2]
[391341940,1760549443101,-466.0,0.00017984,2]
[391341941,1760549443110,-1680.62850788,0.00017984,2]
[391341942,1760549443120,-500.0,0.00017984,2]
[391341943,1760549443130,-1495.90832584,0.00017984,2]
[391341944,1760549443139,-500.0,0.00017986,2]
[391341945,1760549443148,-5035.36108513,0.00017998,2]
[391341946,1760549443158,-299.77790063,0.00018,2]
[391341947,1760549443167,-448.77284214,0.00018,2]
[391341948,1760549443177,-10044.69474436,0.00018,2]
[391341949,1760549443186,-10044.69474436,0.00018,2]
[391341950,1760549443196,-528.78132589,0.00018,2]
[391341951,1760549443206,-181.17533396,0.00018,2]
[391341952,1760549443215,-150.0,0.00018,2]
[391341953,1760549443225,-500.0,0.00018,2]
[391341954,1760549443236,-752.0,0.00018,2]
[391341955,1760549443246,-500.0,0.00018,2]
[391341956,1760549443256,-150.81914312,0.00018,2]
[391341957,1760549443265,-500.0,0.00018,2]
[391341958,1760549443274,-500.0,0.00018,2]
[391341959,1760549443283,-500.0,0.00018,2]
[391341960,1760549443294,-500.0,0.00018,2]
[391341961,1760549443303,-500.0,0.00018,2]
[391341962,1760549443313,-150.77128023,0.00018,2]
[391341963,1760549443323,-500.0,0.00018,2]
[391341964,1760549443333,-150.0,0.00018,2]
[391341965,1760549443342,-150.0,0.00018,2]
[391341966,1760549443353,-150.0,0.00018,2]
[391341967,1760549443363,-150.0,0.00018,2]
[391341968,1760549443372,-150.0,0.00018,2]
[391341969,1760549443381,-150.0,0.00018,2]
[391341970,1760549443390,-1538.3,0.00018,2]
[391341971,1760549443399,-596.257877,0.00018,2]
[391341972,1760549443409,-132638.19510029,0.00018,2]
[391341973,1760549443418,-1175.62209345,0.00018,2]
[391341975,1760549443431,-500.0,0.00018039,2]
[391341977,1760549443440,-150.0,0.00018055,2]
[391341979,1760549443450,-500.0,0.00018055,2]
[391341981,1760549443459,-752.0,0.00018055,2]
[391341983,1760549443469,-500.0,0.00018055,2]
[391341985,1760549443479,-500.0,0.00018055,2]
[391341987,1760549443490,-500.0,0.00018055,2]
[391341989,1760549443499,-500.0,0.00018055,2]
[391341991,1760549443511,-534.7836285,0.00018055,2]
[391341994,1760549443520,-500.0,0.00018055,2]
[391341996,1760549443530,-500.0,0.00018055,2]
[391341998,1760549443539,-150.0,0.00018055,2]
[391342000,1760549443548,-150.0,0.00018055,2]
[391342002,1760549443559,-150.0,0.00018055,2]
[391342004,1760549443568,-150.0,0.00018055,2]
[391342006,1760549443578,-193.22,0.00018074,2]
[391342008,1760549443587,-4903.97407632,0.00018077,2]
[391342010,1760549443597,-500.0,0.00018094,2]
[391342012,1760549443607,-2002.1577,0.000181,2]
[391342014,1760549443616,-151.56273098,0.0001811,2]
[391342016,1760549443625,-500.0,0.0001811,2]
[391342018,1760549443635,-752.0,0.0001811,2]
[391342020,1760549443644,-562.82213547,0.0001811,2]
[391342022,1760549443653,-500.0,0.0001811,2]
[391342024,1760549443663,-500.0,0.0001811,2]
[391342026,1760549443672,-500.0,0.0001811,2]
[391342028,1760549443681,-500.0,0.0001811,2]
[391342030,1760549443691,-500.0,0.0001811,2]
[391342032,1760549443700,-150.0,0.0001811,2]
[391342034,1760549443710,-151.78574834,0.0001811,2]
[391342036,1760549443719,-150.0,0.0001811,2]
[391342038,1760549443729,-150.0,0.0001811,2]
[391342040,1760549443740,-854.72697098,0.0001813,2]
[391342042,1760549443751,-1000.0,0.00018131,2]
[391342044,1760549443761,-500.0,0.00018149,2]
[391342046,1760549443771,-222.88851174,0.00018164,2]
[391342048,1760549443781,-752.0,0.00018164,2]
[391342050,1760549443790,-500.0,0.00018164,2]
[391342052,1760549443800,-500.0,0.00018164,2]
[391342054,1760549443809,-500.0,0.00018164,2]
[391342056,1760549443818,-500.0,0.00018164,2]
[391342058,1760549443828,-500.0,0.00018164,2]
[391342060,1760549443837,-150.0,0.00018164,2]
[391342062,1760549443847,-294.4206148,0.00018164,2]
[391342064,1760549443857,-150.0,0.00018164,2]
[391342066,1760549443866,-5035.36108513,0.00018194,2]
[391342068,1760549443876,-298.26089446,0.00018197,2]
[391342070,1760549443886,-299.77790063,0.000182,2]
[391342072,1760549443895,-448.77284214,0.000182,2]
[391342074,1760549443905,-10044.69474436,0.000182,2]
[391342076,1760549443915,-528.78132589,0.000182,2]
[391342078,1760549443924,-10044.69474436,0.000182,2]
[391342080,1760549443934,-181.17533396,0.000182,2]
[391342083,1760549443944,-500.0,0.00018203,2]
[391342085,1760549443953,-794.5831,0.0001821,2]
[391342087,1760549443964,-752.0,0.00018219,2]
[391342089,1760549443974,-500.0,0.00018219,2]
[391342091,1760549443983,-500.0,0.00018219,2]
[391342093,1760549443995,-500.0,0.00018219,2]
[391342095,1760549444004,-500.0,0.00018219,2]
[391342097,1760549444013,-500.0,0.00018219,2]
[391342099,1760549444023,-210.64745741,0.00018219,2]
[391342101,1760549444032,-250.0,0.00018219,2]
[391342103,1760549444041,-240.0,0.00018227,2]
[391342105,1760549444051,-500.0,0.00018258,2]
[391342107,1760549444060,-500.0,0.0001826,2]
[391342109,1760549444070,-752.0,0.00018274,2]
[391342111,1760549444080,-500.0,0.00018274,2]
[391342113,1760549444089,-500.0,0.00018274,2]
[391342115,1760549444107,-500.0,0.00018274,2]
[391342117,1760549444118,-500.0,0.00018274,2]
[391342119,1760549444127,-1538.3,0.00018274,2]
[391342121,1760549444138,-444.18075369,0.0001829,2]
[391342123,1760549444147,-2500.0,0.00018292,2]
[391342125,1760549444156,-2500.0,0.00018292,2]
[391342127,1760549444167,-1353.2916,0.000183,2]
[391342129,1760549444178,-2762.37868,0.0001831,2]
[391342131,1760549444189,-500.0,0.00018313,2]
[391342133,1760549444198,-752.0,0.00018329,2]
[391342135,1760549444208,-500.0,0.00018329,2]
[391342137,1760549444218,-500.0,0.00018329,2]
[391342139,1760549444228,-213.6994922,0.00018329,2]
[391342141,1760549444239,-500.0,0.00018329,2]
[391342143,1760549444249,-200.0,0.00018352,2]
[391342145,1760549444260,-500.0,0.00018368,2]
[391342147,1760549444271,-1603.0,0.00018379,2]
[391342149,1760549444281,-166.66,0.0001838,2]
[391342151,1760549444290,-752.0,0.00018384,2]
[391342153,1760549444300,-500.0,0.00018384,2]
[391342155,1760549444310,-500.0,0.00018384,2]
[391342157,1760549444326,-500.0,0.00018384,2]
[391342159,1760549444344,-1000.0,0.00018389,2]
[391342161,1760549444355,-218.40957322,0.0001839,2]
[391342163,1760549444365,-5035.36108513,0.0001839,2]
[391342165,1760549444375,-4903.97407632,0.0001839,2]
[391342167,1760549444385,-173.00126746,0.0001839,2]
[391342168,1760549444395,-209.97537072,0.0001839,2]
[391342169,1760549444405,-3001.4611,0.0001839,2]
[391342170,1760549444415,-5000.0,0.0001839,2]
[391342171,1760549444427,-553.7,0.0001839,2]
[391342172,1760549444437,-299.77790063,0.000184,2]
[391342173,1760549444447,-448.77284214,0.000184,2]
[391342174,1760549444461,-10044.69474436,0.000184,2]
[391342175,1760549444471,-10044.69474436,0.000184,2]
[391342176,1760549444481,-528.78132589,0.000184,2]
[391342177,1760549444493,-181.17533396,0.000184,2]
[391342178,1760549444504,-1000.0,0.000184,2]
[391342180,1760549444515,-17704.30763563,0.00018402,2]
[391342182,1760549444524,-26528.4988442,0.00018402,2]
[391342184,1760549444533,-823.0,0.00018408,2]
[391342186,1760549444543,-823.0,0.00018408,2]
[391342188,1760549444553,-500.0,0.00018423,2]
[391342190,1760549444562,-752.0,0.00018438,2]
[391342192,1760549444572,-208.02668607,0.00018438,2]
[391342194,1760549444581,-500.0,0.00018438,2]
[391342196,1760549444590,-500.0,0.00018438,2]
[391342198,1760549444600,-600.40373765,0.0001847,2]
[391342200,1760549444609,-1000.0,0.0001847,2]
[391342202,1760549444619,-500.0,0.00018473,2]
[391342204,1760549444628,-500.0,0.00018473,2]
[391342206,1760549444638,-500.0,0.00018473,2]
[391342208,1760549444648,-500.0,0.00018473,2]
[391342210,1760549444657,-500.0,0.00018473,2]
[391342211,1760549444666,-500.0,0.00018473,2]
[391342212,1760549444675,-500.0,0.00018473,2]
[391342213,1760549444685,-500.0,0.00018473,2]
[391342214,1760549444694,-500.0,0.00018473,2]
[391342215,1760549444704,-500.0,0.00018473,2]
[391342216,1760549444713,-500.0,0.00018473,2]
[391342217,1760549444722,-500.0,0.00018473,2]
[391342218,1760549444732,-500.0,0.00018473,2]
[391342219,1760549444743,-500.0,0.00018473,2]
[391342220,1760549444753,-500.0,0.00018473,2]
[391342222,1760549444770,-500.0,0.00018473,2]
[391342224,1760549444789,-500.0,0.00018473,2]
[391342226,1760549444802,-500.0,0.00018473,2]
[391342228,1760549444811,-500.0,0.00018473,2]
[391342230,1760549444821,-500.0,0.00018473,2]
[391342232,1760549444830,-172.16017549,0.00018473,2]
[391342234,1760549444840,-500.0,0.00018473,2]
[391342236,1760549444850,-500.0,0.00018473,2]
[391342238,1760549444859,-170.67445687,0.00018473,2]
[391342240,1760549444870,-500.0,0.00018473,2]
[391342242,1760549444879,-500.0,0.00018473,2]
[391342244,1760549444888,-562.22531569,0.00018473,2]
[391342246,1760549444897,-500.0,0.00018477,2]
[391342248,1760549444906,-160.0,0.00018478,2]
[391342250,1760549444915,-300.0,0.00018489,2]
[391342252,1760549444924,-300.0,0.00018489,2]
[391342254,1760549444933,-300.0,0.00018489,2]
[391342256,1760549444943,-300.0,0.00018489,2]
[391342258,1760549444952,-1000.0,0.00018489,2]
[391342260,1760549444961,-300.0,0.00018489,2]
[391342262,1760549444971,-302.85637029,0.00018489,2]
[391342264,1760549444981,-300.0,0.00018489,2]
[391342266,1760549444991,-300.0,0.00018489,2]
[391342268,1760549445000,-300.0,0.00018489,2]
[391342270,1760549445009,-300.0,0.00018489,2]
[391342272,1760549445019,-300.0,0.00018489,2]
[391342274,1760549445028,-15368.70651603,0.00018489,2]
[391342276,1760549445037,-1968490.26579389,0.0001849,3]
[391342435,1760549446702,-406.78185936,0.0001849,3]
[391342437,1760549446713,-4018.70472461,0.0001849,3]
[391342441,1760549446736,-11483.86116475,0.0001849,3]
[391342443,1760549446748,-11061.19658138,0.0001849,3]
[391342447,1760549446787,-765238.38410553,0.0001849,3]
[391342450,1760549446810,-210124.13098061,0.0001849,3]
[391342452,1760549446821,-42195.25859344,0.0001849,3]
[391342455,1760549446832,-962.78274041,0.0001849,3]
[391342474,1760549447025,-1249.75000001,0.00013999,2]
[391342476,1760549447035,-1583.0,0.00015672,2]
[391342477,1760549447044,-193167.24999999,0.0001849,3]
[391342480,1760549447064,-22084.00000002,0.0001849,3]
[391342483,1760549447083,-413.8473896,0.0001849,3]
[391342501,1760549447298,-646.0500007,0.0001849,3]
[391342502,1760549447318,-122892.53117946,0.0001849,3]
[391342503,1760549447333,-3614.3613164,0.0001849,3]
[391342504,1760549447344,-592.1533885,0.0001849,3]
[391342505,1760549447355,-6725.71000003,0.0001849,3]
[391342693,1760549503732,-306.44988071,0.00013325,2]
[391342729,1760550632265,-193.55011929,0.00013325,2]
[391342730,1760550632274,-195.0,0.00013757,2]
[391342731,1760550632284,-225.82378646,0.00013809,2]
[391342732,1760550632296,-58.9312261,0.00013809,2]
[391342733,1760550632306,-172.39069942,0.00013841,2]
[391342734,1760550632315,-1200.0,0.00014286,2]
[391342735,1760550632325,-150.0,0.00014656,2]
[391342736,1760550632334,-26.97343644,0.00014656,2]
[391342737,1760550632345,-273.02656356,0.00014656,2]
[391342738,1760550632355,-300.0,0.00014656,2]
[391342739,1760550632365,-300.0,0.00014657,2]
[391342740,1760550632374,-300.0,0.00014657,2]
[391342741,1760550632383,-306.44,0.00014657,2]
[391342742,1760550632393,-195.0,0.00014657,2]
[391342743,1760550632402,-195.0,0.00014657,2]
[391342744,1760550632412,-961.09651487,0.00014657,2]
[391342745,1760550632421,-2100.28059294,0.00014812,2]
[391342746,1760550632432,-926.7019046,0.00014812,2]
[391342747,1760550632448,-196.59472754,0.00014812,2]
[391342748,1760550632457,-267.14626064,0.00014812,2]
[391342749,1760550632467,-162.64971441,0.0001483,2]
[391342750,1760550632477,-258.36976858,0.00014838,2]
[391342751,1760550632486,-267.14626064,0.0001484,2]
[391342752,1760550632496,-167.78579814,0.00014841,2]
[391342753,1760550632505,-180.10171778,0.00014844,2]
[391342754,1760550632515,-215.80686468,0.00014844,2]
[391342755,1760550632527,-519.26229032,0.00014844,2]
[391342757,1760550632537,-180.10171778,0.00014845,2]
[391342759,1760550632549,-258.36976858,0.00014845,2]
[391342761,1760550632559,-3223.57722508,0.00014848,2]
[391342763,1760550632568,-162.64971441,0.00014849,2]
[391342765,1760550632577,-258.04924835,0.00014849,2]
[391342767,1760550632587,-735.069155,0.00014853,2]
[391342769,1760550632596,-267.14626064,0.00014854,2]
[391342771,1760550632606,-3223.57722508,0.00014854,2]
[391342773,1760550632615,-735.069155,0.00014857,2]
[391342775,1760550632625,-167.78579814,0.00014861,2]
[391342777,1760550632635,-162.64971441,0.00014883,2]
[391342779,1760550632644,-258.04924835,0.00014884,2]
[391342781,1760550632654,-167.78579814,0.00014886,2]
[391342783,1760550632663,-180.10171778,0.0001489,2]
[391342786,1760550632673,-258.04924835,0.00014893,2]
[391342789,1760550632682,-258.36976858,0.00014897,2]
[391342792,1760550632691,-1001.0879,0.00014999,2]
[391342795,1760550632701,-475.49624517,0.00015139,2]
[391342798,1760550632710,-161.7355971,0.00015674,2]
[391342800,1760550632719,-1680.0,0.00015715,2]
[391342803,1760550632729,-255.0,0.00015785,2]
[391342806,1760550632738,-2049.0,0.00016022,2]
[391342808,1760550632747,-749.0,0.00016022,2]
[391342810,1760550632756,-1267.0,0.00016022,2]
[391342813,1760550632765,-3407.0,0.00016022,2]
[391342815,1760550632774,-1588.0,0.00016022,2]
[391342818,1760550632787,-571.0,0.00016022,2]
[391342820,1760550632796,-1309.0,0.00016022,2]
[391342823,1760550632805,-604.0,0.00016022,2]
[391342824,1760550632815,-2545.0,0.00016022,2]
[391342825,1760550632824,-902.0,0.00016022,2]
[391342826,1760550632833,-1182.0,0.00016022,2]
[391342827,1760550632843,-816.0,0.00016022,2]
[391342828,1760550632852,-4014.0,0.00016022,2]
[391342829,1760550632862,-1583.0,0.00016022,2]
[391342830,1760550633244,-420.0,0.00016046,2]
[391342831,1760550633272,-420.0,0.00016046,2]
[391342832,1760550633282,-1600.0,0.0001642,2]
[391342833,1760550633292,-500.0,0.00016438,2]
[391342834,1760550633302,-250.0,0.00016527,2]
[391342835,1760550633311,-150.0,0.00016619,2]
[391342836,1760550633320,-150.0,0.00016619,2]
[391342837,1760550633330,-150.0,0.00016619,2]
[391342838,1760550633340,-150.0,0.00016619,2]
[391342839,1760550633349,-165.64,0.00016734,2]
[391342840,1760550633358,-7045.39134248,0.00017,2]
[391342841,1760550633368,-5636.31307398,0.00017,2]
[391342842,1760550633378,-250.0,0.00017,2]
[391342843,1760550633387,-500.0,0.00017,2]
[391342844,1760550633396,-500.0,0.00017,2]
[391342845,1760550633406,-433.0,0.00017001,2]
[391342846,1760550633415,-864.14666999,0.00017157,2]
[391342847,1760550633424,-346.92554585,0.00017157,2]
[391342848,1760550633434,-277.35679052,0.00017157,2]
[391342849,1760550633443,-2000.0,0.00017159,2]
[391342850,1760550633453,-2000.0,0.00017159,2]
[391342851,1760550633462,-2000.0,0.00017159,2]
[391342852,1760550633471,-2000.0,0.00017159,2]
[391342853,1760550633480,-2000.0,0.00017159,2]
[391342854,1760550633490,-1000.0,0.00017159,2]
[391342855,1760550633499,-7045.39134248,0.000172,2]
[391342856,1760550633509,-5636.31307398,0.000172,2]
[391342857,1760550633518,-500.0,0.00017205,2]
[391342858,1760550633528,-500.0,0.00017274,2]
[391342859,1760550633538,-500.0,0.00017274,2]
[391342860,1760550633548,-2351.0,0.00017286,2]
[391342861,1760550633558,-7045.39134248,0.000173,2]
[391342862,1760550633568,-5636.31307398,0.000173,2]
[391342863,1760550633577,-7045.39134248,0.000175,2]
[391342864,1760550633587,-5636.31307398,0.000175,2]
[391342865,1760550633596,-500.0,0.00017534,2]
[391342866,1760550633606,-500.0,0.00017548,2]
[391342867,1760550633615,-500.0,0.00017548,2]
[391342868,1760550633625,-587.0,0.00017567,2]
[391342869,1760550633635,-180.0,0.00017615,2]
[391342870,1760550633645,-7045.39134248,0.000177,2]
[391342871,1760550633655,-5636.31307398,0.000177,2]
[391342872,1760550633664,-500.0,0.00017822,2]
[391342873,1760550633674,-500.0,0.00017822,2]
[391342874,1760550633684,-300.0,0.00017864,2]
[391342875,1760550633694,-7045.39134248,0.000179,2]
[391342876,1760550633703,-193.0,0.000179,2]
[391342877,1760550633712,-1349.202,0.000179,2]
[391342878,1760550633721,-158.599,0.000179,2]
[391342879,1760550633732,-1874.74031265,0.000179,2]
[391342880,1760550633741,-1000.0,0.00017999,2]
[391342881,1760550633759,-1000.0,0.00017999,2]
[391342882,1760550633769,-23502.62835669,0.00018,2]
[391342883,1760550633778,-181.17533396,0.00018,2]
[391342884,1760550633792,-199.85193375,0.00018,2]
[391342885,1760550633801,-10044.69474436,0.00018,2]
[391342886,1760550633811,-10044.69474436,0.00018,2]
[391342887,1760550633822,-179.50913686,0.00018,2]
[391342888,1760550633834,-211.51253036,0.00018,2]
[391342889,1760550633845,-1874.7403126,0.00018011,2]
[391342890,1760550633855,-8208.72786275,0.00018065,2]
[391342891,1760550633867,-500.0,0.00018096,2]
[391342892,1760550633877,-500.0,0.00018096,2]
[391342893,1760550633887,-42973.11721675,0.000181,2]
[391342894,1760550633899,-9882.22642716,0.000181,2]
[391342895,1760550633910,-9055.568093,0.000181,2]
[391342896,1760550633926,-413.90381312,0.000181,2]
[391342897,1760550633938,-4.18444997,0.000181,2]
[391342898,1760550633947,-1874.7403126,0.00018122,2]
[391342899,1760550633957,-641.04522824,0.0001813,2]
[391342900,1760550633967,-1092.28,0.0001817,2]
[391342901,1760550633977,-334.87,0.00018194,2]
[391342902,1760550633986,-77.81308019,0.000182,2]
[391342912,1760550638144,-556.0,0.00016022,2]
[391342913,1760550638154,-103.36225377,0.000182,2]
[391342914,1760550638164,-199.85193375,0.000182,2]
[391342915,1760550638173,-8018.25457125,0.000182,2]
[391342916,1760550638198,-2026.44017311,0.000182,2]
[391342917,1760550638208,-10044.69474436,0.000182,2]
[391342918,1760550638217,-179.50913686,0.000182,2]
[391342919,1760550638228,-211.51253036,0.000182,2]
[391342920,1760550638237,-241.0,0.0001822,2]
[391342921,1760550638247,-1874.7403126,0.00018233,2]
[391342922,1760550638256,-1000.0,0.0001829,2]
[391342923,1760550638267,-2500.0,0.0001829,2]
[391342924,1760550638277,-185.60321317,0.00018296,2]
[391342925,1760550638286,-736.0,0.00018305,2]
[391342926,1760550638298,-168.0,0.00018328,2]
[391342927,1760550638308,-1874.7403126,0.00018344,2]
[391342928,1760550638318,-185.60321314,0.00018363,2]
[391342929,1760550638328,-500.0,0.0001837,2]
[391342930,1760550638337,-500.0,0.0001837,2]
[391342931,1760550638347,-1000.0,0.00018373,2]
[391342932,1760550638357,-1875.22461257,0.00018387,2]
[391342933,1760550638366,-5000.0,0.00018387,2]
[391342934,1760550638375,-189.39179317,0.0001839,2]
[391342935,1760550638385,-192525.3003,0.0001839,2]
[391342936,1760550638395,-199.85193375,0.000184,2]
[391342937,1760550638404,-10044.69474436,0.000184,2]
[391342938,1760550638413,-10044.69474436,0.000184,2]
[391342940,1760550638423,-179.50913686,0.000184,2]
[391342942,1760550638434,-211.51253036,0.000184,2]
[391342944,1760550638445,-428.2935928,0.000184,2]
[391342946,1760550638457,-173.00126746,0.000184,2]
[391342948,1760550638468,-1165.56552536,0.000184,2]
[391342950,1760550638479,-185.60321314,0.0001843,2]
[391342953,1760550638490,-287.0,0.00018433,2]
[391342955,1760550638502,-1874.7403126,0.00018456,2]
[391342957,1760550638513,-1600.0,0.00018473,2]
[391342959,1760550638523,-500.0,0.00018473,2]
[391342960,1760550638534,-500.0,0.00018473,2]
[391342962,1760550638549,-500.0,0.00018473,2]
[391342963,1760550638560,-500.0,0.00018473,2]
[391342964,1760550638570,-500.0,0.00018473,2]
[391342965,1760550638580,-500.0,0.00018473,2]
[391342966,1760550638591,-150.0,0.00018478,2]
[391342967,1760550638601,-150.0,0.00018478,2]
[391342968,1760550638613,-150.0,0.00018478,2]
[391342969,1760550638623,-150.0,0.00018478,2]
[391342970,1760550638633,-150.0,0.00018478,2]
[391342971,1760550638643,-150.0,0.00018478,2]
[391342972,1760550638654,-150.0,0.00018478,2]
[391342973,1760550638666,-470.0,0.00018478,2]
[391342974,1760550638676,-500.0,0.00018478,2]
[391342975,1760550638687,-150.0,0.00018478,2]
[391342976,1760550638698,-500.0,0.00018478,2]
[391342977,1760550638708,-150.0,0.00018478,2]
[391342978,1760550638718,-500.0,0.00018478,2]
[391342979,1760550638728,-547.0,0.00018478,2]
[391342980,1760550638737,-1000.0,0.00018479,2]
[391342981,1760550638747,-1000.0,0.00018479,2]
[391342982,1760550638757,-55492.18968509,0.0001848,2]
[391342983,1760550638782,-465.98784,0.0001848,2]
[391342984,1760550638806,-4347.61009595,0.0001848,2]
[391342985,1760550638816,-500.0,0.00018486,2]
[391342986,1760550638827,-500.0,0.00018486,2]
[391342987,1760550638837,-500.0,0.00018486,2]